bitfinex/quotes_BTCUSD_20220226
["timestamp","ask_amount","ask_price","bid_price","bid_amount"]
[1645904142723,0.62729104,39327.0,39326.0,0.00241463]
[1645904143624,0.62629104,39327.0,39326.0,0.00241463]
[1645904143826,0.63647804,39327.0,39326.0,0.00241463]
[1645904144229,0.62729104,39327.0,39326.0,0.00241463]
[1645904144425,0.62229104,39327.0,39326.0,0.00241463]
[1645904144824,0.7801451,39327.0,39326.0,0.00241463]
[1645904145026,0.62229104,39327.0,39326.0,0.00241463]
[1645904145426,0.62129104,39327.0,39326.0,0.00241463]
[1645904146227,0.62229104,39327.0,39326.0,0.00241463]
[1645904147469,0.62129104,39327.0,39326.0,0.00241463]
[1645904147668,0.63147804,39327.0,39326.0,0.00241463]
[1645904148069,0.7801451,39327.0,39326.0,0.00241463]
[1645904148269,0.3018,39327.0,39326.0,0.00241463]
[1645904148671,0.3018,39327.0,39319.0,0.20209282]
[1645904149270,0.0519,39327.0,39319.0,0.20209282]
[1645904149475,0.2499,39325.0,39319.0,0.20209282]
[1645904150318,0.2519,39325.0,39319.0,0.20209282]
[1645904151418,0.2499,39325.0,39319.0,0.20209282]
[1645904152218,0.2519,39325.0,39319.0,0.20209282]
[1645904152619,0.063625,39324.0,39319.0,0.20209282]
[1645904153421,0.063625,39324.0,39316.0,0.00040754]
[1645904154072,0.064625,39324.0,39316.0,0.00040753]
[1645904155073,0.064625,39324.0,39315.0,0.17120551]
[1645904155273,0.064625,39324.0,39316.0,0.16018384]
[1645904155472,0.063625,39324.0,39316.0,0.16018384]
[1645904156276,0.064625,39324.0,39316.0,0.15977631]
[1645904156473,0.064625,39324.0,39316.0,0.16018384]
[1645904157077,0.064625,39324.0,39321.0,0.16802798]
[1645904157282,0.001,39324.0,39321.0,0.16802798]
[1645904157476,0.00040734,39334.0,39321.0,0.16802798]
[1645904157477,0.15785406,39330.0,39321.0,0.16802798]
[1645904157720,0.54475406,39332.0,39321.0,0.16802798]
[1645904157919,0.3869,39332.0,39324.0,0.2081118]
[1645904158120,0.002,39330.0,39324.0,0.2081118]
[1645904158325,0.002,39330.0,39327.0,0.21811323]
[1645904159524,0.020305,39335.0,39327.0,0.21811323]
[1645904159926,0.063608,39335.0,39327.0,0.21811323]
[1645904160125,0.065608,39335.0,39327.0,0.21811323]
[1645904161224,0.065608,39335.0,39327.0,0.41432535]
[1645904161466,0.065608,39335.0,39327.0,0.21811323]
[1645904161467,0.00043303,39334.0,39327.0,0.21811323]
[1645904162268,0.00143303,39334.0,39327.0,0.21811323]
[1645904162470,0.001,39334.0,39327.0,0.21811323]
[1645904162668,0.00143303,39334.0,39327.0,0.21811323]
[1645904163469,0.00043303,39334.0,39327.0,0.21811323]
[1645904163671,0.063608,39335.0,39327.0,0.21811323]
[1645904163872,0.00043303,39334.0,39327.0,0.21811323]
[1645904164270,0.00243303,39334.0,39327.0,0.21811323]
[1645904164871,0.002,39334.0,39327.0,0.21811323]
[1645904165074,0.00243303,39334.0,39327.0,0.21811323]
[1645904165522,0.00043303,39334.0,39327.0,0.21811323]
[1645904165921,0.063608,39335.0,39327.0,0.21811323]
[1645904166121,0.00143303,39334.0,39327.0,0.21811323]
[1645904166921,0.00143303,39334.0,39327.0,0.21803088]
[1645904167122,0.001,39334.0,39327.0,0.21803088]
[1645904167421,0.00043303,39334.0,39327.0,0.21803088]
[1645904168324,0.002,39334.0,39327.0,0.21803088]
[1645904168623,0.00243303,39334.0,39327.0,0.21803088]
[1645904168821,0.00243303,39334.0,39325.0,0.19935807]
[1645904169064,0.063615,39331.0,39321.0,0.49199104]
[1645904169667,0.01016,39335.0,39322.0,0.02558]
[1645904169869,0.00043301,39334.0,39330.0,0.19222362]
[1645904170468,0.00043301,39334.0,39330.0,0.36956329]
[1645904170666,0.00043301,39334.0,39330.0,0.19222362]
[1645904170868,0.001,39335.0,39330.0,0.19222362]
[1645904171066,0.00015936,39334.0,39330.0,0.19222362]
[1645904171667,0.00015936,39334.0,39331.0,0.52269173]
[1645904171867,0.010184,39339.0,39331.0,0.52269173]
[1645904172067,0.010184,39339.0,39332.0,1.2]
[1645904172267,0.004,39334.0,39333.0,0.32549104]
[1645904172468,0.00415936,39334.0,39332.0,1.2]
[1645904173115,0.00415936,39334.0,39331.0,0.19720069]
[1645904173315,0.00415936,39334.0,39331.0,0.52269173]
[1645904173316,0.004,39334.0,39331.0,0.52269173]
[1645904173522,0.00015913,39336.0,39331.0,0.52269173]
[1645904174118,0.00015913,39336.0,39332.0,0.00286393]
[1645904174318,0.00215913,39336.0,39332.0,0.00286393]
[1645904174518,0.002,39336.0,39332.0,0.00286393]
[1645904174718,0.00215914,39336.0,39332.0,0.00286393]
[1645904174919,0.06576614,39336.0,39332.0,0.00286393]
[1645904175621,0.065607,39336.0,39332.0,0.00286393]
[1645904176017,0.06376614,39336.0,39332.0,0.00286393]
[1645904176218,0.06576614,39336.0,39332.0,0.00286393]
[1645904176869,0.065607,39336.0,39332.0,0.00286393]
[1645904177067,0.06076614,39336.0,39332.0,0.00286393]
[1645904177668,0.05876614,39336.0,39332.0,0.00286393]
[1645904178177,0.15785406,39342.0,39332.0,0.00286393]
[1645904178370,0.002,39336.0,39332.0,0.00286393]
[1645904178570,0.00215914,39336.0,39332.0,0.00286393]
[1645904179071,0.00215914,39336.0,39327.0,0.32549104]
[1645904179371,0.002,39336.0,39327.0,0.32549104]
[1645904179570,0.00015914,39336.0,39327.0,0.32549104]
[1645904179778,0.00015914,39336.0,39326.0,0.00285679]
[1645904179973,0.15728959,39335.0,39326.0,0.00285679]
[1645904180236,0.25728959,39335.0,39326.0,0.00285679]
[1645904180426,0.01016,39334.0,39326.0,0.00285679]
[1645904180624,0.35249257,39333.0,39326.0,0.00285679]
[1645904180828,0.01016,39332.0,39326.0,0.00285679]
[1645904181024,0.0509,39331.0,39326.0,0.00285679]
[1645904181224,0.073777,39330.0,39326.0,0.00285679]
[1645904181423,0.0509,39329.0,39326.0,0.00285679]
[1645904182225,0.0529,39329.0,39326.0,0.00285679]
[1645904183430,0.0509,39329.0,39326.0,0.00285679]
[1645904184276,0.0529,39329.0,39326.0,0.20098235]
[1645904184473,0.002,39329.0,39326.0,0.20098235]
[1645904185073,0.002,39329.0,39327.0,0.32549104]
[1645904185374,0.002,39329.0,39326.0,0.20098235]
[1645904185673,0.00043323,39336.0,39327.0,0.32549104]
[1645904185873,0.00043323,39336.0,39328.0,0.32549104]
[1645904186080,0.00043323,39336.0,39326.0,0.20098235]
[1645904186474,0.063611,39333.0,39326.0,0.20098235]
[1645904187919,0.058611,39333.0,39326.0,0.20098235]
[1645904188723,0.058611,39333.0,39329.0,0.00287108]
[1645904189624,0.06403924,39336.0,39329.0,0.00287108]
[1645904189821,0.00043324,39336.0,39329.0,0.00287108]
[1645904190221,0.01016,39341.0,39329.0,0.00287108]
[1645904190421,0.00043325,39336.0,39332.0,0.18257242]
[1645904191480,0.073785,39340.0,39329.0,0.00287108]
[1645904191481,0.163601,39340.0,39329.0,0.00287108]
[1645904191676,0.00043326,39336.0,39329.0,0.00287108]
[1645904192077,0.06361,39335.0,39329.0,0.00287108]
[1645904192678,0.06361,39335.0,39329.0,0.00256015]
[1645904194077,0.06361,39335.0,39325.0,0.1592]
[1645904194779,0.06361,39335.0,39328.0,0.22351407]
[1645904195424,0.06361,39335.0,39326.0,0.32549104]
[1645904195824,0.06361,39335.0,39325.0,0.1592]
[1645904196027,0.06361,39335.0,39326.0,0.32549104]
[1645904196429,0.06361,39335.0,39327.0,0.21466199]
[1645904197028,0.11451,39335.0,39327.0,0.21466199]
[1645904197226,0.16451,39335.0,39327.0,0.21466199]
[1645904197427,0.21451,39335.0,39327.0,0.21466199]
[1645904197628,0.21451,39335.0,39325.0,0.1592]
[1645904198030,0.12724,39332.0,39323.0,0.00042187]
[1645904198231,0.0509,39331.0,39323.0,0.00042187]
[1645904198627,0.0509,39331.0,39320.0,0.77435256]
[1645904198829,0.06362,39328.0,39323.0,0.00040774]
[1645904199092,0.0509,39327.0,39323.0,0.00040774]
[1645904199886,0.0509,39327.0,39320.0,0.1612]
[1645904200090,0.0509,39327.0,39323.0,0.00040773]
[1645904200988,0.0509,39327.0,39320.0,0.1612]
[1645904201390,0.0509,39327.0,39323.0,0.00040773]
[1645904201391,0.178151,39327.0,39323.0,0.00040773]
[1645904201593,0.188311,39327.0,39323.0,0.00040773]
[1645904202388,0.188311,39327.0,39317.0,0.32549104]
[1645904202588,0.188311,39327.0,39323.0,0.00040868]
[1645904203419,0.188311,39327.0,39315.0,0.32549104]
[1645904203620,0.188311,39327.0,39323.0,0.00040868]
[1645904204018,0.26684323,39324.0,39323.0,0.00040868]
[1645904204223,0.31774323,39324.0,39323.0,0.00040868]
[1645904204619,0.31774323,39324.0,39314.0,0.20905339]
[1645904204821,0.08,39320.0,39314.0,0.20905339]
[1645904205019,0.08,39320.0,39314.0,0.53454443]
[1645904206020,0.08,39320.0,39315.0,0.00040867]
[1645904206877,0.08,39320.0,39313.0,0.05920867]
[1645904207073,0.08,39320.0,39312.0,0.32549104]
[1645904207374,0.08,39320.0,39316.0,0.00040866]
[1645904208376,0.08,39320.0,39312.0,0.32549104]
[1645904209174,0.08,39320.0,39313.0,0.18508764]
[1645904209479,0.08,39320.0,39314.0,0.32486106]
[1645904209774,0.08,39320.0,39313.0,0.18549633]
[1645904210721,0.08,39320.0,39313.0,0.18508764]
[1645904210921,0.08,39320.0,39313.0,0.18549633]
[1645904211924,0.08,39320.0,39313.0,0.18508764]
[1645904212126,0.08,39320.0,39313.0,0.18549633]
[1645904212523,0.08,39320.0,39314.0,0.32486106]
[1645904212724,0.08,39320.0,39313.0,0.18549633]
[1645904212927,0.09016,39324.0,39315.0,0.18340455]
[1645904213325,0.08,39323.0,39315.0,0.18340455]
[1645904213723,0.1309,39323.0,39315.0,0.18340455]
[1645904214177,0.1309,39323.0,39313.0,0.18549596]
[1645904214377,0.1309,39323.0,39313.0,0.18508764]
[1645904214579,0.1309,39323.0,39313.0,0.18549597]
[1645904215379,0.1309,39323.0,39314.0,0.18637056]
[1645904215779,0.1309,39323.0,39314.0,0.51123162]
[1645904216180,0.1309,39323.0,39314.0,0.18637056]
[1645904216580,0.015,39320.0,39314.0,0.18637056]
[1645904217717,0.015,39320.0,39315.0,0.32486106]
[1645904218317,0.015,39320.0,39315.0,0.35044106]
[1645904218518,0.015,39320.0,39315.0,0.32486106]
[1645904223576,0.015,39320.0,39314.0,0.18637056]
[1645904223775,0.015,39320.0,39314.0,0.51123162]
[1645904224880,0.015,39320.0,39314.0,0.32486106]
[1645904225076,0.015,39320.0,39313.0,0.18508764]
[1645904225328,0.015,39320.0,39313.0,0.0004087]
[1645904226430,0.015,39320.0,39312.0,0.19207964]
[1645904226629,0.015,39320.0,39313.0,0.0004087]
[1645904227634,0.015,39320.0,39317.0,0.21793756]
[1645904228633,0.015,39320.0,39313.0,0.32526976]
[1645904228834,0.015,39320.0,39312.0,0.19207964]
[1645904229085,0.015,39320.0,39313.0,0.00040871]
[1645904229285,0.015,39320.0,39313.0,0.32526977]
[1645904229686,0.015,39320.0,39317.0,0.20284704]
[1645904230491,0.08,39323.0,39317.0,0.20284704]
[1645904230492,0.08,39323.0,39319.0,1.22558]
[1645904230689,0.08,39323.0,39320.0,0.32486106]
[1645904230891,0.00040857,39326.0,39320.0,0.32486106]
[1645904231088,8.57e-06,39326.0,39320.0,0.32486106]
[1645904231289,0.15785406,39335.0,39320.0,0.32486106]
[1645904231290,0.01017,39335.0,39320.0,0.32486106]
[1645904231488,0.01017,39335.0,39329.0,0.1752247]
[1645904231688,0.01017,39335.0,39332.0,0.23542075]
[1645904231890,0.01016,39340.0,39332.0,0.23542075]
[1645904232926,0.0636,39341.0,39332.0,0.23542075]
[1645904234131,0.073784,39341.0,39332.0,0.23542075]
[1645904234330,0.073784,39341.0,39324.0,0.38587243]
[1645904234538,0.073784,39341.0,39308.0,0.21202763]
[1645904234539,0.1,39333.0,39308.0,0.21202763]
[1645904234740,0.38333628,39332.0,39311.0,0.05]
[1645904234931,0.26676,39332.0,39307.0,0.64256]
[1645904235132,0.26676,39332.0,39319.0,0.00027435]
[1645904235133,0.58526587,39332.0,39319.0,0.00027435]
[1645904235334,0.57887628,39332.0,39321.0,0.18837247]
[1645904235531,0.42317628,39332.0,39321.0,0.18837247]
[1645904235731,0.10728959,39332.0,39321.0,0.18837247]
[1645904235936,0.05638959,39332.0,39321.0,0.18837247]
[1645904236134,0.05,39332.0,39321.0,0.18837247]
[1645904236587,0.00043331,39328.0,39321.0,0.53113436]
[1645904236891,0.00043331,39328.0,39322.0,0.02558]
[1645904237385,0.1557,39337.0,39322.0,0.02558]
[1645904237386,0.47797628,39337.0,39331.0,0.18667599]
[1645904237584,0.2057,39337.0,39331.0,0.18667599]
[1645904237785,0.1557,39337.0,39331.0,0.18667599]
[1645904237993,0.063599,39340.0,39331.0,0.18667599]
[1645904237994,0.15785406,39340.0,39331.0,0.18667599]
[1645904238385,0.010183,39342.0,39331.0,0.18667599]
[1645904238585,0.49029034,39346.0,39331.0,0.21225599]
[1645904238886,0.33243628,39346.0,39340.0,0.18452911]
[1645904239086,0.01016,39346.0,39340.0,0.18452911]
[1645904239284,0.01016,39348.0,39340.0,0.18452911]
[1645904239686,0.01654959,39348.0,39340.0,0.18452911]
[1645904240087,0.00040679,39346.0,39340.0,0.18452911]
[1645904240929,0.00040679,39346.0,39332.0,0.08916305]
[1645904241128,0.33885879,39348.0,39333.0,0.1569]
[1645904241328,0.0004068,39345.0,39333.0,0.1569]
[1645904241730,0.0004068,39345.0,39337.0,0.16688256]
[1645904241931,0.0004068,39345.0,39338.0,0.21888094]
[1645904242133,0.0004068,39345.0,39333.0,0.1569]
[1645904242334,0.33885879,39348.0,39333.0,0.1569]
[1645904242530,0.00040681,39343.0,39333.0,0.1569]
[1645904243138,0.00040681,39343.0,39337.0,0.20313941]
[1645904243531,0.063592,39345.0,39337.0,0.20313941]
[1645904243732,0.00040828,39342.0,39333.0,0.1569]
[1645904244374,0.00040828,39342.0,39335.0,0.1993718]
[1645904244573,0.1,39344.0,39333.0,0.1569]
[1645904244574,0.3223092,39343.0,39333.0,0.1569]
[1645904244972,0.0004083,39339.0,39333.0,0.1569]
[1645904245876,0.063597,39341.0,39333.0,0.1569]
[1645904246075,0.00040831,39338.0,39333.0,0.1569]
[1645904246678,0.00040831,39338.0,39334.0,0.20054071]
[1645904247078,0.063597,39341.0,39334.0,0.20054071]
[1645904247280,0.00040821,39338.0,39336.0,0.21914024]
[1645904248335,0.01016,39344.0,39336.0,0.21914024]
[1645904248532,0.0004082,39339.0,39336.0,0.21914024]
[1645904249432,0.01016,39344.0,39336.0,0.21914024]
[1645904251483,0.3324692,39344.0,39334.0,0.20054071]
[1645904251686,0.063598,39341.0,39333.0,0.1569]
[1645904252287,0.06400638,39341.0,39333.0,0.1569]
[1645904252686,0.06400638,39341.0,39333.0,0.34615938]
[1645904253088,0.063598,39341.0,39333.0,0.1569]
[1645904253288,0.0004084,39339.0,39333.0,0.1569]
[1645904254187,0.063598,39341.0,39333.0,0.1569]
[1645904254387,0.0004084,39338.0,39333.0,0.1569]
[1645904255333,0.0004084,39338.0,39333.0,0.15680057]
[1645904255532,0.063598,39341.0,39335.0,0.19404903]
[1645904255731,0.0004084,39337.0,39333.0,0.15680057]
[1645904256733,0.063598,39341.0,39333.0,0.37564499]
[1645904256933,0.00039451,39337.0,39333.0,0.37564499]
[1645904257834,0.063598,39341.0,39333.0,0.37564499]
[1645904258039,0.00039514,39337.0,39333.0,0.15680057]
[1645904259073,0.063598,39341.0,39333.0,0.15680057]
[1645904259271,0.00039514,39337.0,39333.0,0.3436105]
[1645904259569,0.00039514,39337.0,39333.0,0.15680057]
[1645904260169,0.01016,39343.0,39333.0,0.15680057]
[1645904260569,0.00040903,39337.0,39333.0,0.15680057]
[1645904260969,0.00040903,39337.0,39334.0,0.17046472]
[1645904261172,0.00040903,39337.0,39333.0,0.15680057]
[1645904261373,0.01016,39343.0,39333.0,0.15680057]
[1645904261770,0.00040937,39337.0,39333.0,0.15680057]
[1645904262819,0.063599,39341.0,39333.0,0.15680057]
[1645904263021,0.00015996,39337.0,39333.0,0.15680057]
[1645904263824,0.063599,39341.0,39333.0,0.15680057]
[1645904264019,0.00015996,39337.0,39333.0,0.15680057]
[1645904265022,0.010183,39340.0,39333.0,0.15680057]
[1645904265222,0.00043456,39337.0,39333.0,0.15680057]
[1645904266229,0.0509,39352.0,39335.0,1.2]
[1645904266493,0.5021,39360.0,39337.0,0.80688]
[1645904266688,0.0021,39360.0,39347.0,0.02558]
[1645904266887,0.0021,39360.0,39349.0,0.403673]
[1645904267090,0.001194,39360.0,39351.0,0.02558]
[1645904267387,1.0138,39377.0,39359.0,0.19335784]
[1645904267587,0.01013,39370.0,39360.0,1.5224992]
[1645904267785,0.5042,39377.0,39360.0,1.5224992]
[1645904267786,0.063544,39377.0,39361.0,1.22558]
[1645904267996,0.04084686,39381.0,39368.0,0.378093]
[1645904267997,0.0999,39374.0,39368.0,0.378093]
[1645904268191,0.0022,39381.0,39372.0,1.184973]
[1645904268192,0.0002,39381.0,39372.0,1.184973]
[1645904268389,0.0021,39387.0,39377.0,1.9613]
[1645904268390,0.0011,39386.0,39377.0,1.9613]
[1645904268592,0.17465235,39404.0,39386.0,0.378093]
[1645904268790,0.1011,39401.0,39384.0,0.02558]
[1645904269095,0.01017,39389.0,39381.0,0.12698768]
[1645904269289,0.010419,39390.0,39374.0,0.3324592]
[1645904269290,0.00040956,39383.0,39374.0,0.3324592]
[1645904269487,0.00040956,39383.0,39374.0,0.3223092]
[1645904269686,0.00040956,39383.0,39373.0,0.76188]
[1645904270536,0.23459217,39383.0,39373.0,0.76188]
[1645904270738,0.17695949,39380.0,39373.0,0.76188]
[1645904270936,0.00040958,39380.0,39373.0,0.76188]
[1645904271436,0.23459217,39383.0,39373.0,0.76188]
[1645904271642,2.18e-06,39378.0,39374.0,0.32868058]
[1645904271840,2.18e-06,39378.0,39374.0,0.35426058]
[1645904272037,2.18e-06,39378.0,39374.0,0.40426058]
[1645904272237,2.18e-06,39378.0,39374.0,0.37868058]
[1645904272638,0.1857508,39389.0,39374.0,0.37868058]
[1645904272839,0.1857508,39389.0,39381.0,0.1976898]
[1645904273041,0.00025,39390.0,39381.0,0.1976898]
[1645904273245,0.00025,39390.0,39382.0,0.32868058]
[1645904274274,0.00025,39390.0,39382.0,0.39219433]
[1645904274671,0.00025,39390.0,39382.0,0.06351375]
[1645904275073,0.00025,39390.0,39382.0,0.55027967]
[1645904275271,0.00015889,39388.0,39382.0,0.39219433]
[1645904275471,0.00015889,39388.0,39382.0,0.06351375]
[1645904275671,0.00015889,39388.0,39382.0,0.39219433]
[1645904275975,0.00015889,39388.0,39382.0,0.06351375]
[1645904276271,0.00025,39390.0,39382.0,0.39219433]
[1645904276472,0.0004365,39387.0,39380.0,0.32868058]
[1645904276671,0.0004365,39387.0,39378.0,0.01014]
[1645904277073,0.0004365,39387.0,39379.0,0.06351676]
[1645904277271,0.0004365,39387.0,39380.0,0.33882058]
[1645904277471,0.00025,39390.0,39382.0,0.17548339]
[1645904277728,0.00043651,39385.0,39383.0,0.32868058]
[1645904277925,6.51e-06,39390.0,39383.0,0.32868058]
[1645904278326,6.51e-06,39390.0,39381.0,0.32368058]
[1645904279326,6.51e-06,39390.0,39382.0,0.03572]
[1645904279531,6.51e-06,39390.0,39383.0,0.39218958]
[1645904280027,0.00015827,39388.0,39383.0,0.40232958]
[1645904280230,0.00015827,39388.0,39383.0,0.01014]
[1645904280427,0.00015827,39388.0,39381.0,0.01014]
[1645904280628,0.00015827,39388.0,39378.0,0.002]
[1645904281480,0.00043649,39387.0,39380.0,0.18452674]
[1645904281675,0.00043649,39387.0,39381.0,0.32868058]
[1645904282275,6.51e-06,39390.0,39381.0,0.32868058]
[1645904282776,0.00043649,39387.0,39379.0,0.32868058]
[1645904282976,0.00043649,39387.0,39376.0,0.32968058]
[1645904283376,0.18111351,39387.0,39377.0,0.18433318]
[1645904283578,6.51e-06,39390.0,39378.0,0.32868058]
[1645904283776,0.00043648,39387.0,39378.0,0.32868058]
[1645904284176,0.00043648,39387.0,39377.0,0.01014]
[1645904284377,0.17279301,39392.0,39377.0,0.01014]
[1645904284583,0.16160182,39388.0,39377.0,0.01014]
[1645904284779,0.16160182,39388.0,39376.0,0.33882058]
[1645904285426,0.16092553,39388.0,39376.0,0.33882058]
[1645904285827,0.2073119,39386.0,39376.0,0.33882058]
[1645904286030,0.2073119,39386.0,39374.0,0.01014]
[1645904286230,0.0509,39385.0,39376.0,0.00027864]
[1645904286430,0.0459,39385.0,39376.0,0.00027864]
[1645904287133,0.0459,39385.0,39373.0,0.75688]
[1645904287332,0.0459,39385.0,39376.0,0.00027864]
[1645904287530,0.0459,39385.0,39376.0,0.1727884]
[1645904287935,0.16092553,39388.0,39377.0,0.32868058]
[1645904288232,0.1522024,39388.0,39377.0,0.32868058]
[1645904288630,0.22975163,39387.0,39377.0,0.32868058]
[1645904288830,0.22975163,39387.0,39376.0,0.00043661]
[1645904289480,0.22975163,39387.0,39375.0,0.33042707]
[1645904289481,0.22975163,39387.0,39375.0,0.32868058]
[1645904289685,0.22975163,39387.0,39378.0,0.00038666]
[1645904292187,0.1522024,39388.0,39378.0,0.00038666]
[1645904292383,0.0509,39388.0,39378.0,0.00038666]
[1645904292725,0.00043646,39389.0,39378.0,0.32906724]
[1645904292921,0.00043646,39389.0,39378.0,0.00038666]
[1645904293123,0.23911459,39389.0,39378.0,0.00038666]
[1645904293521,0.23955106,39389.0,39378.0,0.00038666]
[1645904294023,0.16765683,39382.0,39378.0,0.00038666]
[1645904294421,0.0509,39381.0,39378.0,0.00038666]
[1645904294921,0.0509,39381.0,39379.0,0.000441]
[1645904300079,0.0509,39381.0,39380.0,0.00152233]
[1645904305283,0.0509,39381.0,39380.0,0.0004271]
[1645904305284,0.0459,39381.0,39380.0,0.0004271]
[1645904306681,0.23224526,39389.0,39380.0,0.0004271]
[1645904306682,0.0509,39386.0,39380.0,0.0004271]
[1645904307283,0.24866822,39386.0,39380.0,0.0004271]
[1645904308136,0.23225613,39389.0,39380.0,0.0004271]
[1645904308336,0.00014846,39389.0,39380.0,0.0004271]
[1645904308732,8.46e-06,39389.0,39380.0,0.3785201]
[1645904308936,8.46e-06,39389.0,39382.0,0.378093]
[1645904309133,0.5489,39400.0,39383.0,0.32868058]
[1645904309333,0.5489,39400.0,39392.0,0.18137733]
[1645904309533,0.5489,39400.0,39388.0,0.32868058]
[1645904309534,0.0021,39400.0,39388.0,0.32868058]
[1645904309934,0.053,39400.0,39383.0,0.32868058]
[1645904310539,0.11651,39400.0,39383.0,0.32868058]
[1645904310735,0.18624179,39398.0,39385.0,0.19364336]
[1645904310934,0.00015758,39393.0,39385.0,0.19364336]
[1645904311136,0.04605758,39397.0,39386.0,1.2]
[1645904311334,0.04605758,39397.0,39386.0,0.32868058]
[1645904313181,0.24736993,39397.0,39386.0,0.32868058]
[1645904313377,0.0021,39400.0,39386.0,0.32868058]
[1645904313576,0.0021,39400.0,39388.0,0.06350059]
[1645904313577,0.053,39400.0,39388.0,0.06350059]
[1645904313776,0.053,39400.0,39389.0,0.32868058]
[1645904313980,0.053,39400.0,39386.0,0.32868058]
[1645904314377,0.17208457,39397.0,39386.0,0.32868058]
[1645904314777,0.053,39400.0,39391.0,0.17263524]
[1645904315624,0.00043588,39397.0,39391.0,0.17263524]
[1645904315829,0.00043588,39397.0,39392.0,0.32868058]
[1645904316023,0.00043588,39397.0,39391.0,0.17263524]
[1645904316623,0.053,39400.0,39391.0,0.17263524]
[1645904316825,5.89e-06,39396.0,39392.0,0.32868058]
[1645904317825,0.17332641,39398.0,39392.0,0.32868058]
[1645904318034,0.0021,39400.0,39389.0,0.32868058]
[1645904318228,0.0021,39400.0,39388.0,0.06349876]
[1645904318430,0.0021,39400.0,39389.0,0.32868058]
[1645904318985,0.0021,39400.0,39391.0,0.20004642]
[1645904319583,0.0021,39400.0,39392.0,0.00096458]
[1645904319784,0.0021,39400.0,39393.0,0.00046336]
[1645904320383,0.00015735,39398.0,39393.0,0.00046336]
[1645904321087,0.21338793,39398.0,39393.0,0.00046336]
[1645904321284,0.21323058,39398.0,39393.0,0.00046336]
[1645904321684,0.21366646,39398.0,39393.0,0.00046336]
[1645904322485,0.0509,39399.0,39393.0,0.00046336]
[1645904323026,0.00043588,39398.0,39393.0,0.00046336]
[1645904323426,0.04133588,39399.0,39394.0,0.3]
[1645904323631,0.26512899,39399.0,39393.0,0.00046336]
[1645904323827,0.23260785,39398.0,39393.0,0.00046336]
[1645904324226,0.04133588,39399.0,39393.0,0.00046336]
[1645904324627,0.04133588,39399.0,39395.0,0.00061316]
[1645904325431,0.03633588,39399.0,39395.0,0.00061316]
[1645904328680,0.03613302,39399.0,39395.0,0.00061316]
[1645904328877,0.1,39397.0,39395.0,0.00061316]
[1645904329079,0.9365,39396.0,39395.0,0.00061316]
[1645904329777,0.6866,39396.0,39395.0,0.00061316]
[1645904330523,0.6876,39396.0,39395.0,0.00061316]
[1645904330923,0.9325,39396.0,39395.0,0.00061316]
[1645904331823,0.9315,39396.0,39395.0,0.00061316]
[1645904332623,1.0325,39396.0,39395.0,0.00061316]
[1645904333992,1.0315,39396.0,39395.0,0.00061316]
[1645904334183,1.12790727,39396.0,39393.0,0.00059025]
[1645904334384,1.12790727,39396.0,39392.0,0.00043594]
[1645904334385,0.1,39394.0,39392.0,0.00043594]
[1645904334584,0.177966,39393.0,39391.0,0.00062028]
[1645904334783,0.1,39392.0,39391.0,0.00062028]
[1645904334985,0.1509,39392.0,39391.0,0.00062028]
[1645904335185,0.2009,39392.0,39391.0,0.00062028]
[1645904335385,0.2009,39392.0,39391.0,0.00016798]
[1645904335586,0.1009,39392.0,39391.0,0.00016798]
[1645904336687,0.1019,39392.0,39391.0,0.00016798]
[1645904338430,0.1009,39392.0,39391.0,0.00016798]
[1645904338627,0.112071,39392.0,39391.0,0.00016798]
[1645904339133,0.1019,39392.0,39391.0,0.00016798]
[1645904339527,0.1019,39392.0,39391.0,0.00118322]
[1645904339929,0.1009,39392.0,39391.0,0.00118322]
[1645904340630,0.1019,39392.0,39391.0,0.00118322]
[1645904341230,0.2019,39392.0,39391.0,0.00118322]
[1645904341680,0.1019,39392.0,39391.0,0.00118322]
[1645904341886,0.177066,39393.0,39391.0,0.00118322]
[1645904341887,0.127066,39393.0,39391.0,0.00118322]
[1645904342079,0.0509,39399.0,39391.0,0.00118322]
[1645904342282,0.06604306,39400.0,39391.0,0.00118322]
[1645904342478,0.07621206,39400.0,39391.0,0.00118322]
[1645904342676,0.06604306,39400.0,39391.0,0.00118322]
[1645904342876,0.16257452,39399.0,39391.0,0.00118322]
[1645904343083,0.065607,39400.0,39391.0,0.3298638]
[1645904343277,0.06601618,39400.0,39392.0,0.00040927]
[1645904344081,0.27944059,39400.0,39392.0,0.00040927]
[1645904344283,0.27903141,39400.0,39391.0,0.3298638]
[1645904344480,0.2794406,39400.0,39392.0,0.00040927]
[1645904345530,0.27903141,39400.0,39391.0,0.3305269]
[1645904345730,0.2794406,39400.0,39392.0,0.00040927]
[1645904346731,0.27903141,39400.0,39391.0,0.00184632]
[1645904346932,0.2794406,39400.0,39392.0,0.00040927]
[1645904347132,0.06601619,39400.0,39392.0,0.00040927]
[1645904347330,0.00250919,39400.0,39392.0,0.00040927]
[1645904348036,0.0021,39400.0,39391.0,0.3305269]
[1645904348233,0.00251101,39400.0,39392.0,0.00041109]
[1645904348435,0.00251101,39400.0,39391.0,0.33027183]
[1645904348995,0.227034,39398.0,39393.0,0.00123751]
[1645904349188,0.0509,39397.0,39393.0,0.00123751]
[1645904349387,0.0509,39397.0,39392.0,0.00025544]
[1645904349388,0.6866,39397.0,39392.0,0.00025544]
[1645904349787,0.19788254,39395.0,39392.0,0.00025544]
[1645904349989,0.114423,39394.0,39392.0,0.00025544]
[1645904354226,0.124593,39394.0,39391.0,0.00045164]
[1645904354426,0.114423,39394.0,39393.0,0.00118056]
[1645904354827,0.114423,39394.0,39393.0,0.0004188]
[1645904355227,0.11399519,39394.0,39393.0,0.0004188]
[1645904358179,0.12416619,39394.0,39393.0,0.0004188]
[1645904358378,0.11371036,39394.0,39393.0,0.0004188]
[1645904359178,0.11371036,39394.0,39393.0,0.00111825]
[1645904359881,0.11371036,39394.0,39393.0,0.0003565]
[1645904361828,0.05018736,39394.0,39393.0,0.0003565]
[1645904363031,0.00041532,39397.0,39393.0,0.0003565]
[1645904363532,0.3019,39401.0,39393.0,0.0003565]
[1645904363977,0.00041533,39397.0,39393.0,0.0003565]
[1645904364178,0.00041533,39397.0,39393.0,0.00064832]
[1645904364785,0.063508,39399.0,39393.0,0.00064832]
[1645904365181,0.00041531,39397.0,39393.0,0.00064832]
[1645904365881,0.063508,39399.0,39393.0,0.00064832]
[1645904366181,0.00040344,39397.0,39393.0,0.00064832]
[1645904367179,0.2828351,39399.0,39393.0,0.00064832]